bitfinex-derivatives/quotes_BNBF0:USTF0_20250608
["timestamp","ask_amount","ask_price","bid_price","bid_amount"]
[1749367010981,0.454,649.95,649.51,0.447]
[1749367011181,1.10643897,649.94,649.51,0.447]
[1749367011380,1.10643897,649.93,649.51,0.447]
[1749367011581,1.10643897,649.92,649.51,0.447]
[1749367011782,1.10643897,649.91,649.51,0.447]
[1749367011984,1.10643897,649.9,649.51,0.447]
[1749367012283,0.454,649.95,649.51,0.447]
[1749367012481,1.10614617,649.94,649.51,0.447]
[1749367012682,1.10614617,649.93,649.51,0.447]
[1749367012877,1.10614617,649.92,649.51,0.447]
[1749367013081,1.10614617,649.91,649.51,0.447]
[1749367013281,1.10614617,649.9,649.51,0.447]
[1749367013484,0.454,649.95,649.51,0.447]
[1749367013680,1.10607281,649.94,649.51,0.447]
[1749367013983,0.454,649.95,649.51,0.447]
[1749367013984,1.10607281,649.93,649.51,0.447]
[1749367014284,1.10607281,649.92,649.51,0.447]
[1749367014482,1.10607281,649.91,649.51,0.447]
[1749367014784,1.10607281,649.9,649.51,0.447]
[1749367015082,0.454,649.95,649.51,0.447]
[1749367015285,1.10599958,649.94,649.51,0.447]
[1749367015583,1.10599958,649.93,649.51,0.447]
[1749367015783,1.10599958,649.92,649.51,0.447]
[1749367015987,1.10599958,649.91,649.51,0.447]
[1749367016182,0.454,649.95,649.51,0.447]
[1749367016383,1.10593751,649.94,649.51,0.447]
[1749367016680,1.10593751,649.93,649.51,0.447]
[1749367016882,1.10593751,649.92,649.51,0.447]
[1749367017184,1.10593751,649.91,649.51,0.447]
[1749367017381,0.454,649.95,649.51,0.447]
[1749367017586,1.10601466,649.94,649.51,0.447]
[1749367017881,1.10601466,649.93,649.51,0.447]
[1749367018080,0.454,649.95,649.51,0.447]
[1749367018081,1.10601466,649.92,649.51,0.447]
[1749367018282,1.10601466,649.91,649.51,0.447]
[1749367018482,0.454,649.95,649.51,0.447]
[1749367018686,1.10568833,649.94,649.51,0.447]
[1749367018886,1.10568833,649.93,649.51,0.447]
[1749367019083,1.10568833,649.92,649.51,0.447]
[1749367019283,1.10568833,649.91,649.51,0.447]
[1749367019484,0.454,649.95,649.51,0.447]
[1749367019688,1.10565141,649.94,649.51,0.447]
[1749367019884,1.10565141,649.93,649.51,0.447]
[1749367020087,1.10565141,649.92,649.51,0.447]
[1749367020287,1.10565141,649.91,649.51,0.447]
[1749367020486,1.10560067,649.9,649.51,0.447]
[1749367020790,1.10560067,649.89,649.51,0.447]
[1749367020985,1.10560067,649.88,649.51,0.447]
[1749367021185,1.10560067,649.87,649.51,0.447]
[1749367021389,1.10545825,649.86,649.51,0.447]
[1749367021593,1.10545825,649.85,649.51,0.447]
[1749367021790,0.454,649.95,649.51,0.447]
[1749367021985,1.10801738,649.94,649.51,0.447]
[1749367022189,1.10801738,649.93,649.51,0.447]
[1749367022389,1.10801738,649.92,649.51,0.447]
[1749367022589,1.10801738,649.91,649.51,0.447]
[1749367022791,1.10801738,649.9,649.51,0.447]
[1749367022990,1.10801738,649.89,649.51,0.447]
[1749367023185,1.10801738,649.88,649.52,0.385]
[1749367023486,1.10801738,649.87,649.52,0.385]
[1749367023691,1.10801738,649.86,649.52,0.385]
[1749367023891,0.454,649.95,649.52,0.385]
[1749367024191,1.1077847,649.94,649.52,0.385]
[1749367024391,1.1077847,649.93,649.52,0.385]
[1749367024691,1.1077847,649.92,649.52,0.385]
[1749367024887,1.1077847,649.91,649.52,0.385]
[1749367025092,1.1077847,649.9,649.52,0.385]
[1749367025292,1.1077847,649.89,649.52,0.385]
[1749367025492,1.1077847,649.88,649.52,0.385]
[1749367025787,1.1077847,649.87,649.52,0.385]
[1749367025992,1.1077847,649.86,649.52,0.385]
[1749367026193,0.454,649.95,649.52,0.385]
[1749367026488,1.10754882,649.94,649.52,0.385]
[1749367026692,0.454,649.95,649.52,0.385]
[1749367026693,1.10754882,649.93,649.52,0.385]
[1749367026893,1.10754882,649.92,649.52,0.385]
[1749367027090,1.10754882,649.91,649.52,0.385]
[1749367027294,1.10754882,649.9,649.52,0.385]
[1749367027588,0.454,649.95,649.52,0.385]
[1749367027589,1.10754882,649.89,649.52,0.385]
[1749367027789,1.10754882,649.88,649.52,0.385]
[1749367027992,1.10754882,649.87,649.52,0.385]
[1749367028191,1.10754882,649.86,649.52,0.385]
[1749367028496,0.454,649.95,649.52,0.385]
[1749367028691,1.10673373,649.94,649.52,0.385]
[1749367028891,1.10673373,649.93,649.52,0.385]
[1749367029194,1.10673373,649.92,649.52,0.385]
[1749367029490,1.10673373,649.91,649.52,0.385]
[1749367029695,1.10673373,649.9,649.52,0.385]
[1749367029895,1.10673373,649.89,649.52,0.385]
[1749367030195,1.10673373,649.88,649.52,0.385]
[1749367030395,1.10673373,649.87,649.52,0.385]
[1749367030589,1.10673373,649.86,649.52,0.385]
[1749367030791,1.10673373,649.85,649.52,0.385]
[1749367030992,1.10673373,649.84,649.52,0.385]
[1749367031195,0.454,649.95,649.52,0.385]
[1749367031391,1.10654391,649.94,649.52,0.385]
[1749367031591,1.10654391,649.93,649.52,0.385]
[1749367031795,1.10654391,649.92,649.52,0.385]
[1749367031992,1.10654391,649.91,649.52,0.385]
[1749367032192,1.10654391,649.9,649.52,0.385]
[1749367032395,1.10654391,649.89,649.52,0.385]
[1749367032596,1.10654391,649.88,649.52,0.385]
[1749367032796,1.10654391,649.87,649.52,0.385]
[1749367032990,1.10654391,649.86,649.52,0.385]
[1749367033192,1.10654391,649.85,649.52,0.385]
[1749367033391,1.10654391,649.84,649.52,0.385]
[1749367033597,0.454,649.95,649.52,0.385]
[1749367033790,1.10647302,649.94,649.52,0.385]
[1749367033995,1.10647302,649.93,649.52,0.385]
[1749367034193,1.10647302,649.92,649.52,0.385]
[1749367034496,1.10647302,649.91,649.52,0.385]
[1749367034794,1.10647302,649.9,649.52,0.385]
[1749367034998,1.10647302,649.89,649.52,0.385]
[1749367035195,1.10647302,649.88,649.43,0.30796236]
[1749367035497,1.10647302,649.87,649.43,0.30796236]
[1749367035693,1.10647302,649.86,649.43,0.30796236]
[1749367035893,1.10647302,649.85,649.43,0.30796236]
[1749367036093,1.10647302,649.84,649.43,0.30796236]
[1749367036298,0.454,649.95,649.43,0.30796236]
[1749367036598,1.10631124,649.94,649.43,0.30796236]
[1749367036795,1.10631124,649.93,649.43,0.30796236]
[1749367036993,1.10631124,649.92,649.43,0.30796236]
[1749367037193,0.454,649.95,649.43,0.30796236]
[1749367037194,1.10631124,649.91,649.43,0.30796236]
[1749367037395,1.10631124,649.9,649.43,0.30796236]
[1749367037698,0.454,649.95,649.43,0.30796236]
[1749367037699,1.10631124,649.89,649.43,0.30796236]
[1749367037995,1.10631124,649.88,649.44,0.385]
[1749367038199,1.10631124,649.87,649.44,0.385]
[1749367038400,1.10631124,649.86,649.45,0.41]
[1749367038600,1.10631124,649.85,649.45,0.41]
[1749367038902,1.10631124,649.84,649.45,0.41]
[1749367039100,1.10631124,649.83,649.45,0.41]
[1749367039300,1.10643649,649.82,649.45,0.41]
[1749367039502,0.454,649.95,649.45,0.41]
[1749367039698,1.10641177,649.94,649.45,0.41]
[1749367039900,1.10641177,649.93,649.45,0.41]
[1749367040199,1.10641177,649.92,649.45,0.41]
[1749367040396,1.10641177,649.91,649.45,0.41]
[1749367040599,1.10641177,649.9,649.45,0.41]
[1749367040798,1.10641177,649.89,649.45,0.41]
[1749367040998,1.10641177,649.88,649.45,0.41]
[1749367041199,1.10641177,649.87,649.45,0.41]
[1749367041399,1.10641177,649.86,649.45,0.41]
[1749367041605,1.10641177,649.85,649.45,0.41]
[1749367041799,1.10641177,649.84,649.45,0.41]
[1749367042004,1.10641177,649.83,649.45,0.41]
[1749367042205,1.10641177,649.82,649.45,0.41]
[1749367042405,1.10641177,649.81,649.45,0.41]
[1749367042606,0.454,649.95,649.45,0.41]
[1749367042808,1.10681385,649.94,649.45,0.41]
[1749367043003,0.454,649.95,649.45,0.41]
[1749367043004,1.10681385,649.93,649.45,0.41]
[1749367043307,1.10681385,649.92,649.45,0.41]
[1749367043504,1.10681385,649.91,649.45,0.41]
[1749367043702,1.10681385,649.9,649.45,0.41]
[1749367043901,1.10681385,649.89,649.45,0.41]
[1749367044108,1.10681385,649.88,649.45,0.41]
[1749367044406,1.10681385,649.87,649.45,0.41]
[1749367044611,1.10681385,649.86,649.45,0.41]
[1749367044912,1.10681385,649.85,649.45,0.41]
[1749367045111,1.10681385,649.84,649.45,0.41]
[1749367045310,1.10681385,649.83,649.45,0.41]
[1749367045509,1.10681385,649.82,649.45,0.41]
[1749367045714,1.10681385,649.81,649.45,0.41]
[1749367045911,1.10681385,649.8,649.45,0.41]
[1749367046214,1.10770955,649.79,649.45,0.41]
[1749367046509,1.10770955,649.78,649.45,0.41]
[1749367046713,0.454,649.95,649.45,0.41]
[1749367046908,1.10767699,649.94,649.45,0.41]
[1749367047114,1.10767699,649.93,649.45,0.41]
[1749367047316,1.10767699,649.92,649.45,0.41]
[1749367047510,1.10767699,649.91,649.45,0.41]
[1749367047714,1.10767699,649.9,649.45,0.41]
[1749367048010,1.10767699,649.89,649.45,0.41]
[1749367048315,1.10767699,649.88,649.45,0.41]
[1749367048510,1.10767699,649.87,649.45,0.41]
[1749367048815,1.10767699,649.86,649.45,0.41]
[1749367049010,1.10767699,649.85,649.45,0.41]
[1749367049210,1.10767699,649.84,649.45,0.41]
[1749367049511,1.10767699,649.83,649.45,0.41]
[1749367049710,1.10767699,649.82,649.45,0.41]
[1749367049910,1.10767699,649.81,649.45,0.41]
[1749367050110,1.10767699,649.8,649.45,0.41]
[1749367050311,1.10767699,649.79,649.45,0.41]
[1749367050512,1.10767699,649.78,649.45,0.41]
[1749367050711,1.10767699,649.77,649.45,0.41]
[1749367050917,0.454,649.95,649.45,0.41]
[1749367051217,1.10808807,649.94,649.45,0.41]
[1749367051413,1.10808807,649.93,649.45,0.41]
[1749367051614,1.10808807,649.92,649.45,0.41]
[1749367051814,1.10808807,649.91,649.45,0.41]
[1749367052017,1.10808807,649.9,649.45,0.41]
[1749367052214,1.10808807,649.89,649.45,0.41]
[1749367052418,1.10808807,649.88,649.45,0.41]
[1749367052618,1.10808807,649.87,649.45,0.41]
[1749367052818,1.10808807,649.86,649.45,0.41]
[1749367053015,1.10808807,649.85,649.45,0.41]
[1749367053216,1.10808807,649.84,649.45,0.41]
[1749367053421,1.10808807,649.83,649.45,0.41]
[1749367053618,1.10808807,649.82,649.45,0.41]
[1749367053820,1.10808807,649.81,649.45,0.41]
[1749367054117,1.10808807,649.8,649.45,0.41]
[1749367054320,1.10808807,649.79,649.45,0.41]
[1749367054517,1.10808807,649.78,649.45,0.41]
[1749367054719,1.10808807,649.77,649.45,0.41]
[1749367054920,1.10808807,649.76,649.45,0.41]
[1749367055123,1.10808807,649.75,649.45,0.41]
[1749367055322,1.10808807,649.74,649.45,0.41]
[1749367055523,1.10808807,649.73,649.45,0.41]
[1749367055725,0.454,649.95,649.45,0.41]
[1749367055923,1.10816844,649.94,649.45,0.41]
[1749367056223,1.10816844,649.93,649.45,0.41]
[1749367056523,1.10816844,649.92,649.45,0.41]
[1749367056820,1.10816844,649.91,649.45,0.41]
[1749367057031,1.10816844,649.9,649.45,0.41]
[1749367057220,0.454,649.95,649.45,0.41]
[1749367057221,1.10816844,649.89,649.45,0.41]
[1749367057520,1.10816844,649.88,649.45,0.41]
[1749367057724,1.10816844,649.87,649.45,0.41]
[1749367057921,1.10816844,649.86,649.45,0.41]
[1749367058724,0.26778191,650.02,649.45,0.41]
[1749367060321,0.389,650.01,649.46,0.385]
[1749367061322,1.1085202,650.0,649.46,0.385]
[1749367061824,0.389,650.01,649.46,0.385]
[1749367063024,1.14969861,649.94,649.46,0.385]
[1749367063226,2.25824005,649.93,649.46,0.385]
[1749367063423,1.10854144,649.92,649.46,0.385]
[1749367063621,1.10854144,649.91,649.46,0.385]
[1749367063824,1.10854144,649.9,649.46,0.385]
[1749367064023,1.10854144,649.89,649.47,0.46]
[1749367064223,1.10854144,649.88,649.47,0.46]
[1749367064427,1.10854144,649.87,649.47,0.46]
[1749367064726,1.10854144,649.86,649.47,0.46]
[1749367064926,1.10854144,649.85,649.47,0.46]
[1749367065127,1.10854144,649.84,649.47,0.46]
[1749367065325,1.10854144,649.83,649.47,0.46]
[1749367065529,1.10854144,649.82,649.47,0.46]
[1749367065829,1.10854144,649.81,649.47,0.46]
[1749367066031,1.10854144,649.8,649.47,0.46]
[1749367066225,1.10854144,649.79,649.47,0.46]
[1749367066424,1.10854144,649.78,649.47,0.46]
[1749367066632,1.10854144,649.77,649.47,0.46]
[1749367066827,1.10854144,649.76,649.47,0.46]
[1749367067029,1.10854144,649.75,649.47,0.46]
[1749367067231,1.10854144,649.74,649.47,0.46]
[1749367067437,1.10854144,649.73,649.47,0.46]
[1749367067736,1.14969861,649.93,649.47,0.46]
[1749367067937,1.10846686,649.92,649.47,0.46]
[1749367068136,1.10846686,649.91,649.47,0.46]
[1749367068338,1.10846686,649.9,649.47,0.46]
[1749367068535,1.10846686,649.89,649.47,0.46]
[1749367068733,1.10846686,649.88,649.47,0.46]
[1749367068937,1.10846686,649.87,649.47,0.46]
[1749367069133,1.10846686,649.86,649.47,0.46]
[1749367069438,1.10846686,649.85,649.47,0.46]
[1749367069637,1.10846686,649.84,649.47,0.46]
[1749367069839,1.10846686,649.83,649.47,0.46]
[1749367070035,1.10846686,649.82,649.47,0.46]
[1749367070236,1.10846686,649.81,649.47,0.46]
[1749367070536,0.389,650.01,649.47,0.46]
[1749367070537,1.10846686,649.8,649.47,0.46]
[1749367070735,1.10846686,649.79,649.47,0.46]
[1749367070940,1.10846686,649.78,649.47,0.46]
[1749367071140,1.10846686,649.77,649.47,0.46]
[1749367071339,1.10846686,649.76,649.47,0.46]
[1749367071638,1.10846686,649.75,649.47,0.46]
[1749367071942,1.10846686,649.74,649.47,0.46]
[1749367072241,1.10846686,649.73,649.47,0.46]
[1749367072440,1.10846686,649.72,649.47,0.46]
[1749367072643,1.14969861,649.92,649.47,0.46]
[1749367072943,1.10859339,649.91,649.47,0.46]
[1749367073142,1.10859339,649.9,649.47,0.46]
[1749367073340,1.10859339,649.89,649.47,0.46]
[1749367073542,1.10859339,649.88,649.47,0.46]
[1749367073744,1.10859339,649.87,649.47,0.46]
[1749367073942,1.10859339,649.86,649.47,0.46]
[1749367074144,1.10859339,649.85,649.47,0.46]
[1749367074446,1.10859339,649.84,649.47,0.46]
[1749367074740,1.10859339,649.83,649.47,0.46]
[1749367074941,1.10859339,649.82,649.47,0.46]
[1749367075144,1.10859339,649.81,649.46,0.385]
[1749367075345,1.10859339,649.8,649.46,0.385]
[1749367075543,1.10859339,649.79,649.46,0.385]
[1749367075743,1.10859339,649.78,649.46,0.385]
[1749367075944,1.10859339,649.77,649.46,0.385]
[1749367076244,1.10859339,649.76,649.46,0.385]
[1749367076445,1.10859339,649.75,649.46,0.385]
[1749367076642,1.10859339,649.74,649.46,0.385]
[1749367076851,1.10859339,649.73,649.46,0.385]
[1749367077046,1.10859339,649.72,649.46,0.385]
[1749367077350,1.14969861,649.92,649.46,0.385]
[1749367077547,1.10789123,649.91,649.46,0.385]
[1749367077847,1.10789123,649.9,649.46,0.385]
[1749367078051,1.10789123,649.89,649.46,0.385]
[1749367078248,1.10789123,649.88,649.46,0.385]
[1749367078456,1.10789123,649.87,649.47,0.386]
[1749367078748,1.10789123,649.86,649.47,0.386]
[1749367078950,1.10789123,649.85,649.47,0.386]
[1749367079147,1.10789123,649.84,649.47,0.386]
[1749367079349,1.10789123,649.83,649.47,0.386]
[1749367079550,1.10789123,649.82,649.47,0.386]
[1749367079753,1.10789123,649.81,649.47,0.386]
[1749367080050,1.10789123,649.8,649.47,0.386]
[1749367080248,1.10789123,649.79,649.47,0.386]
[1749367080453,1.10789123,649.78,649.47,0.386]
[1749367080750,1.10789123,649.77,649.47,0.386]
[1749367080948,1.10789123,649.76,649.47,0.386]
[1749367081253,1.10789123,649.75,649.47,0.386]
[1749367081551,1.10789123,649.74,649.47,0.386]
[1749367081753,1.10789123,649.73,649.48,0.385]
[1749367081953,1.10789123,649.72,649.48,0.385]
[1749367082153,1.10789123,649.71,649.48,0.385]
[1749367082350,1.10789123,649.7,649.48,0.385]
[1749367082656,1.14969861,649.94,649.48,0.385]
[1749367082850,1.10834563,649.93,649.48,0.385]
[1749367083055,1.10834563,649.92,649.48,0.385]
[1749367083353,1.10834563,649.91,649.48,0.385]
[1749367083552,1.10834563,649.9,649.48,0.385]
[1749367083756,1.10834563,649.89,649.48,0.385]
[1749367083951,1.10834563,649.88,649.48,0.385]
[1749367084156,1.10834563,649.87,649.48,0.385]
[1749367084351,1.10834563,649.86,649.48,0.385]
[1749367084551,1.10834563,649.85,649.48,0.385]
[1749367084758,1.10834563,649.84,649.48,0.385]
[1749367085056,1.10834563,649.83,649.48,0.385]
[1749367085257,1.10834563,649.82,649.48,0.385]
[1749367085460,1.10834563,649.81,649.48,0.385]
[1749367085660,1.10834563,649.8,649.48,0.385]
[1749367085861,1.10834563,649.79,649.48,0.385]
[1749367086060,1.10834563,649.78,649.48,0.385]
[1749367086262,1.10834563,649.77,649.48,0.385]
[1749367086460,1.10834563,649.76,649.48,0.385]
[1749367086660,1.10834563,649.75,649.48,0.385]
[1749367086860,1.10834563,649.74,649.48,0.385]
[1749367087064,1.10834563,649.73,649.48,0.385]
[1749367087262,1.10834563,649.72,649.48,0.385]
[1749367087465,1.10834563,649.71,649.48,0.385]
[1749367087764,1.10834563,649.7,649.48,0.385]
[1749367087961,1.14969861,649.94,649.48,0.385]
[1749367088161,1.10917735,649.93,649.48,0.385]
[1749367088361,1.10917735,649.92,649.48,0.385]
[1749367088565,1.10917735,649.91,649.48,0.385]
[1749367088762,1.10917735,649.9,649.48,0.385]
[1749367088967,1.10917735,649.89,649.48,0.385]
[1749367089163,1.10917735,649.88,649.48,0.385]
[1749367089467,1.10917735,649.87,649.48,0.385]
[1749367089662,1.10917735,649.86,649.48,0.385]
[1749367089863,1.10917735,649.85,649.48,0.385]
[1749367090064,1.10917735,649.84,649.48,0.385]
[1749367090264,1.10917735,649.83,649.48,0.385]
[1749367090464,1.10917735,649.82,649.48,0.385]
[1749367090671,1.10917735,649.81,649.48,0.385]
[1749367090865,1.10917735,649.8,649.48,0.385]
[1749367091165,1.10917735,649.79,649.48,0.385]
[1749367091364,1.10917735,649.78,649.48,0.385]
[1749367091565,1.10917735,649.77,649.48,0.385]
[1749367091765,1.10917735,649.76,649.48,0.385]
[1749367092068,1.10917735,649.75,649.48,0.385]
[1749367092369,1.10917735,649.74,649.48,0.385]
[1749367092569,1.10917735,649.73,649.48,0.385]
[1749367092769,1.10917735,649.72,649.48,0.385]
[1749367092970,1.10917735,649.71,649.48,0.385]
[1749367093265,1.10917735,649.7,649.48,0.385]
[1749367093465,1.10917735,649.69,649.48,0.385]
[1749367093666,1.14969861,649.91,649.48,0.385]
[1749367093869,1.10991331,649.9,649.48,0.385]
[1749367094169,1.14969861,649.91,649.48,0.385]
[1749367094170,1.10991331,649.89,649.48,0.385]
[1749367094465,1.10991331,649.88,649.48,0.385]
[1749367094664,1.10991331,649.87,649.48,0.385]
[1749367094970,1.10991331,649.86,649.48,0.385]
[1749367095166,1.10991331,649.85,649.48,0.385]
[1749367095369,1.10991331,649.84,649.48,0.385]
[1749367095665,1.10991331,649.83,649.48,0.385]
[1749367095866,1.10991331,649.82,649.48,0.385]
[1749367096170,1.10991331,649.81,649.48,0.385]
[1749367096364,1.10991331,649.8,649.48,0.385]
[1749367096570,1.10991331,649.79,649.48,0.385]
[1749367096874,1.10991331,649.78,649.48,0.385]
[1749367097068,1.10991331,649.77,649.48,0.385]
[1749367097266,1.10991331,649.76,649.48,0.385]
[1749367097470,1.10991331,649.75,649.48,0.385]
[1749367097772,1.10991331,649.74,649.48,0.385]
[1749367097967,1.10991331,649.73,649.48,0.385]
[1749367098170,1.10991331,649.72,649.48,0.385]
[1749367098374,1.10991331,649.71,649.48,0.385]
[1749367098569,1.10991331,649.7,649.48,0.385]
[1749367098774,1.92193148,650.01,649.48,0.385]
[1749367098775,1.10991331,649.69,649.48,0.385]
[1749367098972,1.14969861,649.88,649.48,0.385]
[1749367099172,1.10880273,649.87,649.48,0.385]
[1749367099371,1.10880273,649.86,649.48,0.385]
[1749367099571,1.10880273,649.85,649.48,0.385]
[1749367099769,1.10880273,649.84,649.48,0.385]
[1749367099973,1.10880273,649.83,649.47,0.386]
[1749367100270,1.10880273,649.82,649.47,0.386]
[1749367100469,1.10880273,649.81,649.47,0.386]
[1749367100673,1.10880273,649.8,649.47,0.386]
[1749367100874,1.10880273,649.79,649.47,0.386]
[1749367101073,1.10880273,649.78,649.47,0.386]
[1749367101274,1.10880273,649.77,649.47,0.386]
[1749367101569,1.10880273,649.76,649.47,0.386]
[1749367101870,1.10880273,649.75,649.47,0.386]
[1749367102070,1.10880273,649.74,649.48,0.385]
[1749367102276,1.10880273,649.73,649.48,0.385]
[1749367102472,1.10880273,649.72,649.48,0.385]
[1749367102776,1.14969861,649.94,649.48,0.385]
[1749367102975,1.10891658,649.93,649.48,0.385]
[1749367103174,1.10891658,649.92,649.48,0.385]
[1749367103374,1.10891658,649.91,649.48,0.385]
[1749367103574,1.14969861,649.94,649.48,0.385]
[1749367103575,1.10891658,649.9,649.48,0.385]
[1749367103875,1.10891658,649.89,649.48,0.385]
[1749367104071,1.10891658,649.88,649.48,0.385]
[1749367104271,1.10891658,649.87,649.48,0.385]
[1749367104473,1.10891658,649.86,649.48,0.385]
[1749367104673,1.10891658,649.85,649.48,0.385]
[1749367104874,1.10891658,649.84,649.48,0.385]
[1749367105073,1.10891658,649.83,649.48,0.385]
[1749367105271,1.10891658,649.82,649.48,0.385]
[1749367105472,1.10891658,649.81,649.48,0.385]
[1749367105680,1.10891658,649.8,649.48,0.385]
[1749367105875,1.10891658,649.79,649.48,0.385]
[1749367106076,1.10891658,649.78,649.48,0.385]
[1749367106275,1.10891658,649.77,649.48,0.385]
[1749367106572,1.10891658,649.76,649.48,0.385]
[1749367106776,1.10891658,649.75,649.48,0.385]
[1749367107072,1.10891658,649.74,649.48,0.385]
[1749367107271,1.10891658,649.73,649.48,0.385]
[1749367107473,1.10891658,649.72,649.48,0.385]
[1749367107673,1.14969861,649.95,649.48,0.385]
[1749367107976,1.10928655,649.94,649.48,0.385]
[1749367108274,1.10928655,649.93,649.48,0.385]
[1749367108576,1.10928655,649.92,649.48,0.385]
[1749367108774,1.10928655,649.91,649.49,0.538]
[1749367108972,1.10928655,649.9,649.49,0.538]
[1749367109175,1.10928655,649.89,649.49,0.538]
[1749367109372,1.10928655,649.88,649.49,0.538]
[1749367109576,1.10928655,649.87,649.49,0.538]
[1749367109876,1.10928655,649.86,649.49,0.538]
[1749367110177,1.10928655,649.85,649.49,0.538]
[1749367110374,1.10928655,649.84,649.49,0.538]
[1749367110675,1.10928655,649.83,649.49,0.538]
[1749367110874,1.10928655,649.82,649.49,0.538]
[1749367111078,1.10928655,649.81,649.49,0.538]
[1749367111278,1.10928655,649.8,649.49,0.538]
[1749367111478,1.14969861,649.96,649.49,0.538]
[1749367111479,1.10928655,649.79,649.49,0.538]
[1749367111775,1.10928655,649.78,649.49,0.538]
[1749367111977,1.10928655,649.77,649.49,0.538]
[1749367112179,1.10928655,649.76,649.49,0.538]
[1749367112375,1.10928655,649.75,649.49,0.538]
[1749367112578,1.10928655,649.74,649.49,0.538]
[1749367112778,1.10928655,649.73,649.49,0.538]
[1749367112983,1.14969861,649.99,649.49,0.538]
[1749367113285,1.10947133,649.98,649.49,0.538]
[1749367113485,1.10947133,649.97,649.49,0.538]
[1749367113778,1.10947133,649.96,649.49,0.538]
[1749367113983,1.10947133,649.95,649.49,0.538]
[1749367114178,1.10947133,649.94,649.49,0.538]
[1749367114380,1.10947133,649.93,649.49,0.538]
[1749367114579,1.10947133,649.92,649.49,0.538]
[1749367114783,1.10947133,649.91,649.49,0.538]
[1749367114977,1.10947133,649.9,649.49,0.538]
[1749367115181,1.10947133,649.89,649.49,0.538]
[1749367115380,1.10947133,649.88,649.49,0.538]
[1749367115579,1.10947133,649.87,649.49,0.538]
[1749367115884,1.10947133,649.86,649.49,0.538]
[1749367116084,1.10947133,649.85,649.49,0.538]
[1749367116379,1.10947133,649.84,649.49,0.538]
[1749367116684,1.10947133,649.83,649.5,0.385]
[1749367116980,0.389,650.01,649.5,0.385]
[1749367116981,1.10947133,649.82,649.5,0.385]
[1749367117283,1.10947133,649.81,649.5,0.385]
[1749367117478,1.10947133,649.8,649.5,0.385]
[1749367117681,1.10947133,649.79,649.5,0.385]
[1749367117880,1.10947133,649.78,649.5,0.385]
[1749367118183,1.10947133,649.77,649.5,0.385]
[1749367118489,0.389,650.01,649.5,0.385]
[1749367118683,1.10971423,650.0,649.5,0.385]
[1749367118983,1.10971423,649.99,649.5,0.385]
[1749367119180,1.10971423,649.98,649.5,0.385]
[1749367119383,1.10971423,649.97,649.5,0.385]
[1749367119581,1.10971423,649.96,649.5,0.385]
[1749367119785,1.10971423,649.95,649.5,0.385]
[1749367119984,1.10971423,649.94,649.5,0.385]
[1749367120183,1.10971423,649.93,649.5,0.385]
[1749367120382,1.10971423,649.92,649.5,0.385]
[1749367120583,1.10971423,649.91,649.5,0.385]
[1749367120781,1.10971423,649.9,649.5,0.385]
[1749367120986,1.41748052,650.02,649.5,0.385]
[1749367120987,1.10971423,649.89,649.5,0.385]
[1749367121282,1.10971423,649.88,649.5,0.385]
[1749367121583,1.10971423,649.87,649.5,0.385]
[1749367121783,1.10971423,649.86,649.5,0.385]
[1749367121983,1.10971423,649.85,649.5,0.385]
[1749367122182,1.10971423,649.84,649.5,0.385]
[1749367122390,1.10971423,649.83,649.5,0.385]